fUSD/lending_fUSD_20250202
["ID","MTS","AMOUNT","RATE_DAILY","PERIOD"]
[351333179,1738516285231,-2106.98,0.00011642,2]
[351333180,1738516285243,-986.39,0.00011642,2]
[351333181,1738516285253,-500.0,0.00011642,2]
[351333182,1738516285263,-500.0,0.00011642,2]
[351333183,1738516285272,-1832.2,0.00011642,2]
[351333184,1738516285281,-500.0,0.00011642,2]
[351333185,1738516285291,-500.0,0.00011642,2]
[351333186,1738516285302,-500.0,0.00011642,2]
[351333187,1738516285311,-500.0,0.00011642,2]
[351333188,1738516285322,-1788.45,0.00011642,2]
[351333189,1738516285331,-483.74211028,0.00011642,2]
[351333190,1738516285340,-500.0,0.00011642,2]
[351333191,1738516285349,-593.9,0.00011642,2]
[351333192,1738516285360,-500.0,0.00011642,2]
[351333193,1738516285371,-500.0,0.00011642,2]
[351333194,1738516285381,-500.0,0.00011642,2]
[351333195,1738516285402,-836.62,0.00011642,2]
[351333196,1738516285414,-181.25496937,0.00011642,2]
[351333197,1738516285425,-500.0,0.00011642,2]
[351333198,1738516285435,-500.0,0.00011642,2]
[351333199,1738516285446,-500.0,0.00011642,2]
[351333200,1738516285456,-500.0,0.00011642,2]
[351333201,1738516285468,-500.0,0.00011642,2]
[351333202,1738516285478,-1413.27,0.00011642,2]
[351333203,1738516285491,-363.62114223,0.00011642,2]
[351333204,1738516285501,-500.0,0.00011642,2]
[351333205,1738516285512,-500.0,0.00011642,2]
[351333206,1738516285522,-1365.43,0.00011642,2]
[351333207,1738516285532,-500.0,0.00011642,2]
[351333208,1738516285542,-500.0,0.00011642,2]
[351333209,1738516285552,-500.0,0.00011642,2]
[351333210,1738516285562,-730.63,0.00011642,2]
[351333211,1738516285571,-500.0,0.00011642,2]
[351333212,1738516285582,-500.0,0.00011642,2]
[351333213,1738516285593,-769.72,0.00011642,2]
[351333214,1738516285609,-500.0,0.00011642,2]
[351333215,1738516285621,-500.0,0.00011642,2]
[351333216,1738516285632,-500.0,0.00011642,2]
[351333217,1738516285643,-662.11,0.00011642,2]
[351333218,1738516285654,-500.0,0.00011642,2]
[351333219,1738516285665,-500.0,0.00011642,2]
[351333220,1738516285675,-500.0,0.00011642,2]
[351333221,1738516285685,-500.0,0.00011642,2]
[351333222,1738516285696,-500.0,0.00011642,2]
[351333223,1738516285706,-500.0,0.00011642,2]
[351333224,1738516285716,-732.02,0.00011642,2]
[351333225,1738516285726,-522.59293801,0.00011642,2]
[351333226,1738516285740,-500.0,0.00011642,2]
[351333227,1738516285749,-500.0,0.00011642,2]
[351333228,1738516285759,-500.0,0.00011642,2]
[351333229,1738516285769,-500.0,0.00011642,2]
[351333230,1738516285780,-505.73550146,0.00011642,2]
[351333231,1738516285791,-500.0,0.00011642,2]
[351333232,1738516285801,-500.0,0.00011642,2]
[351333233,1738516285811,-500.0,0.00011642,2]
[351333234,1738516285822,-500.0,0.00011642,2]
[351333235,1738516285832,-500.0,0.00011642,2]
[351333236,1738516285843,-503.62682563,0.00011642,2]
[351333237,1738516285853,-500.0,0.00011642,2]
[351333238,1738516285863,-500.0,0.00011642,2]
[351333239,1738516285873,-500.0,0.00011642,2]
[351333240,1738516285883,-500.0,0.00011642,2]
[351333241,1738516285893,-500.0,0.00011642,2]
[351333242,1738516285903,-500.0,0.00011642,2]
[351333243,1738516285914,-500.0,0.00011642,2]
[351333244,1738516285924,-500.0,0.00011642,2]
[351333245,1738516285933,-500.0,0.00011642,2]
[351333246,1738516285944,-500.0,0.00011642,2]
[351333247,1738516285955,-193.47181418,0.00011642,2]
[351333248,1738516285967,-500.0,0.00011642,2]
[351333249,1738516285978,-500.0,0.00011642,2]
[351333250,1738516285991,-500.0,0.00011642,2]
[351333251,1738516286002,-500.0,0.00011642,2]
[351333252,1738516286012,-500.0,0.00011642,2]
[351333253,1738516286026,-500.0,0.00011642,2]
[351333254,1738516286035,-500.0,0.00011642,2]
[351333255,1738516286044,-500.0,0.00011642,2]
[351333256,1738516286054,-500.0,0.00011642,2]
[351333257,1738516286065,-500.0,0.00011642,2]
[351333258,1738516286074,-500.0,0.00011642,2]
[351333259,1738516286083,-500.0,0.00011642,2]
[351333260,1738516286092,-500.0,0.00011642,2]
[351333261,1738516286102,-500.0,0.00011642,2]
[351333262,1738516286112,-500.0,0.00011642,2]
[351333263,1738516286123,-500.0,0.00011642,2]
[351333264,1738516286132,-500.0,0.00011642,2]
[351333265,1738516286142,-553.02,0.00011642,2]
[351333266,1738516286152,-500.0,0.00011642,2]
[351333267,1738516286162,-542.96,0.00011642,2]
[351333268,1738516286171,-500.0,0.00011642,2]
[351333269,1738516286181,-859.6,0.00011642,2]
[351333270,1738516286189,-500.0,0.00011642,2]
[351333271,1738516286196,-500.0,0.00011642,2]
[351333272,1738516286204,-500.0,0.00011642,2]
[351333273,1738516286213,-500.0,0.00011642,2]
[351333274,1738516286220,-738.49,0.00011642,2]
[351333275,1738516286228,-500.0,0.00011642,2]
[351333276,1738516286239,-659.82,0.00011643,2]
[351333277,1738516286247,-1818.08,0.00011643,2]
[351333278,1738516286258,-1383.94,0.00011643,2]
[351333279,1738516286268,-1632.92,0.00011643,2]
[351333280,1738516286278,-500.0,0.00011643,2]
[351333281,1738516286288,-500.0,0.00011643,2]
[351333282,1738516286297,-500.0,0.00011643,2]
[351333283,1738516286306,-500.0,0.00011643,2]
[351333284,1738516286315,-1496.05,0.00011643,2]
[351333285,1738516286325,-500.0,0.00011643,2]
[351333286,1738516286335,-500.0,0.00011643,2]
[351333287,1738516286345,-919.37,0.00011643,2]
[351333288,1738516286355,-500.0,0.00011643,2]
[351333289,1738516286366,-500.0,0.00011643,2]
[351333290,1738516286375,-500.0,0.00011643,2]
[351333291,1738516286386,-500.0,0.00011643,2]
[351333292,1738516286396,-500.0,0.00011643,2]
[351333293,1738516286406,-1229.6,0.00011643,2]
[351333294,1738516286417,-500.0,0.00011643,2]
[351333295,1738516286427,-1004.74,0.00011643,2]
[351333296,1738516286437,-500.0,0.00011643,2]
[351333297,1738516286448,-500.0,0.00011643,2]
[351333298,1738516286458,-500.0,0.00011643,2]
[351333299,1738516286469,-500.0,0.00011643,2]
[351333300,1738516286480,-508.68,0.00011643,2]
[351333301,1738516286493,-500.0,0.00011643,2]
[351333302,1738516286503,-500.0,0.00011643,2]
[351333303,1738516286513,-500.0,0.00011643,2]
[351333304,1738516286524,-500.0,0.00011643,2]
[351333305,1738516286535,-1560.97,0.00011643,2]
[351333306,1738516286546,-500.0,0.00011643,2]
[351333307,1738516286556,-500.0,0.00011643,2]
[351333308,1738516286566,-500.0,0.00011643,2]
[351333309,1738516286577,-500.0,0.00011643,2]
[351333310,1738516286587,-935.8,0.00011643,2]
[351333311,1738516286597,-500.0,0.00011643,2]
[351333312,1738516286608,-500.0,0.00011643,2]
[351333313,1738516286619,-1597.78,0.00011643,2]
[351333314,1738516286821,-500.0,0.00011643,2]
[351333315,1738516286831,-500.0,0.00011643,2]
[351333316,1738516286840,-500.0,0.00011643,2]
[351333317,1738516286850,-686.32,0.00011643,2]
[351333318,1738516286864,-500.0,0.00011643,2]
[351333319,1738516286873,-500.0,0.00011643,2]
[351333320,1738516286883,-500.0,0.00011643,2]
[351333321,1738516286893,-500.0,0.00011643,2]
[351333322,1738516286903,-500.0,0.00011643,2]
[351333323,1738516286912,-747.2,0.00011643,2]
[351333324,1738516286922,-500.0,0.00011643,2]
[351333325,1738516286934,-931.63,0.00011643,2]
[351333326,1738516286944,-500.0,0.00011643,2]
[351333327,1738516286954,-544.19,0.00011643,2]
[351333328,1738516286964,-500.0,0.00011643,2]
[351333329,1738516286974,-500.0,0.00011643,2]
[351333330,1738516286985,-793.15,0.00011643,2]
[351333331,1738516286995,-500.0,0.00011643,2]
[351333332,1738516287009,-834.52,0.00011643,2]
[351333333,1738516287019,-500.0,0.00011643,2]
[351333334,1738516287030,-500.0,0.00011643,2]
[351333335,1738516287040,-1545.01,0.00011643,2]
[351333336,1738516287051,-500.0,0.00011643,2]
[351333337,1738516287061,-368.9271341,0.00011643,2]
[351333338,1738516287072,-500.0,0.00011643,2]
[351333339,1738516287082,-500.0,0.00011643,2]
[351333340,1738516287092,-1108.92,0.00011643,2]
[351333341,1738516287102,-500.0,0.00011643,2]
[351333342,1738516287112,-500.0,0.00011643,2]
[351333343,1738516287122,-500.0,0.00011643,2]
[351333344,1738516287132,-722.24,0.00011643,2]
[351333345,1738516287142,-571.77,0.00011643,2]
[351333346,1738516287152,-500.0,0.00011643,2]
[351333347,1738516287163,-1136.17,0.00011643,2]
[351333348,1738516287173,-500.0,0.00011643,2]
[351333349,1738516287183,-500.0,0.00011643,2]
[351333350,1738516287193,-500.0,0.00011643,2]
[351333351,1738516287203,-500.0,0.00011643,2]
[351333352,1738516287213,-710.69,0.00011643,2]
[351333353,1738516287224,-857.14,0.00011643,2]
[351333354,1738516287235,-500.0,0.00011643,2]
[351333355,1738516287245,-500.0,0.00011643,2]
[351333356,1738516287255,-1750.64,0.00011643,2]
[351333357,1738516287265,-500.0,0.00011643,2]
[351333358,1738516287275,-500.0,0.00011643,2]
[351333359,1738516287285,-500.0,0.00011643,2]
[351333360,1738516287295,-500.0,0.00011643,2]
[351333361,1738516287304,-500.0,0.00011643,2]
[351333362,1738516287314,-500.0,0.00011643,2]
[351333363,1738516287324,-500.0,0.00011643,2]
[351333364,1738516287334,-500.0,0.00011643,2]
[351333365,1738516287344,-842.59,0.00011643,2]
[351333366,1738516287355,-180.94446538,0.00011643,2]
[351333367,1738516287365,-500.0,0.00011643,2]
[351333368,1738516287375,-775.0,0.00011643,2]
[351333369,1738516287385,-500.0,0.00011643,2]
[351333370,1738516287395,-625.53,0.00011643,2]
[351333371,1738516287405,-500.0,0.00011643,2]
[351333372,1738516287416,-500.0,0.00011643,2]
[351333373,1738516287426,-500.0,0.00011643,2]
[351333374,1738516287436,-500.0,0.00011643,2]
[351333375,1738516287446,-739.9,0.00011643,2]
[351333376,1738516287455,-500.0,0.00011643,2]
[351333377,1738516287465,-500.0,0.00011643,2]
[351333378,1738516287476,-500.0,0.00011643,2]
[351333379,1738516287487,-500.0,0.00011643,2]
[351333380,1738516287496,-1495.04,0.00011643,2]
[351333381,1738516287506,-500.0,0.00011643,2]
[351333382,1738516287516,-500.0,0.00011643,2]
[351333383,1738516287526,-844.5,0.00011643,2]
[351333384,1738516287536,-500.0,0.00011643,2]
[351333385,1738516287545,-500.0,0.00011643,2]
[351333386,1738516287555,-500.0,0.00011643,2]
[351333387,1738516287565,-500.0,0.00011643,2]
[351333388,1738516287575,-500.0,0.00011643,2]
[351333389,1738516287585,-500.0,0.00011643,2]
[351333390,1738516287595,-500.0,0.00011643,2]
[351333391,1738516287605,-500.0,0.00011643,2]
[351333392,1738516287615,-500.0,0.00011643,2]
[351333393,1738516287624,-500.0,0.00011643,2]
[351333394,1738516287635,-684.18,0.00011643,2]
[351333395,1738516287644,-500.0,0.00011643,2]
[351333396,1738516287654,-500.0,0.00011643,2]
[351333397,1738516287664,-152.58139354,0.00011643,2]
[351333398,1738516287674,-500.0,0.00011643,2]
[351333399,1738516287684,-631.66,0.00011643,2]
[351333400,1738516287694,-500.0,0.00011643,2]
[351333401,1738516287704,-500.0,0.00011643,2]
[351333402,1738516287714,-500.0,0.00011643,2]
[351333403,1738516287725,-551.59,0.00011643,2]
[351333404,1738516287737,-500.0,0.00011643,2]
[351333405,1738516287747,-500.0,0.00011643,2]
[351333406,1738516287756,-1084.43,0.00011643,2]
[351333407,1738516287766,-500.0,0.00011643,2]
[351333408,1738516287775,-500.0,0.00011643,2]
[351333409,1738516287785,-500.0,0.00011643,2]
[351333410,1738516287795,-500.0,0.00011643,2]
[351333411,1738516287805,-500.0,0.00011643,2]
[351333412,1738516287815,-840.48,0.00011643,2]
[351333413,1738516287824,-500.0,0.00011643,2]
[351333414,1738516287835,-1710.72,0.00011643,2]
[351333415,1738516287845,-500.0,0.00011643,2]
[351333416,1738516287855,-500.0,0.00011643,2]
[351333417,1738516287865,-448.38552738,0.00011643,2]
[351333418,1738516287875,-500.0,0.00011643,2]
[351333419,1738516287884,-517.38,0.00011643,2]
[351333420,1738516287894,-760.74,0.00011643,2]
[351333421,1738516287905,-500.0,0.00011643,2]
[351333422,1738516287915,-849.46,0.00011643,2]
[351333423,1738516287924,-500.0,0.00011643,2]
[351333424,1738516287934,-500.0,0.00011643,2]
[351333425,1738516287944,-2007.31,0.00011643,2]
[351333426,1738516287953,-500.0,0.00011643,2]
[351333427,1738516287964,-488.56597285,0.00011643,2]
[351333428,1738516287973,-892.19,0.00011643,2]
[351333429,1738516287983,-658.76,0.00011643,2]
[351333430,1738516287994,-500.0,0.00011643,2]
[351333431,1738516288008,-1757.52,0.00011643,2]
[351333432,1738516288018,-529.89541409,0.00011643,2]
[351333433,1738516288028,-1228.76,0.00011643,2]
[351333434,1738516288038,-1094.69,0.00011643,2]
[351333435,1738516288049,-500.0,0.00011643,2]
[351333436,1738516288059,-500.0,0.00011643,2]
[351333437,1738516288069,-518.37,0.00011643,2]
[351333438,1738516288079,-500.0,0.00011643,2]
[351333439,1738516288089,-500.0,0.00011643,2]
[351333440,1738516288099,-500.0,0.00011643,2]
[351333441,1738516288109,-3130.51,0.00011643,2]
[351333442,1738516288119,-1929.48,0.00011643,2]
[351333443,1738516288129,-500.0,0.00011643,2]
[351333444,1738516288139,-486.06766928,0.00011643,2]
[351333445,1738516288150,-500.0,0.00011643,2]
[351333446,1738516288159,-1280.69,0.00011643,2]
[351333447,1738516288168,-500.0,0.00011643,2]
[351333448,1738516288178,-500.0,0.00011643,2]
[351333449,1738516288187,-1077.4,0.00011643,2]
[351333450,1738516288198,-500.0,0.00011643,2]
[351333451,1738516288210,-500.0,0.00011643,2]
[351333452,1738516288220,-500.0,0.00011643,2]
[351333453,1738516288230,-500.0,0.00011643,2]
[351333454,1738516288241,-877.75,0.00011643,2]
[351333455,1738516288250,-2073.0,0.00011643,2]
[351333456,1738516288259,-500.0,0.00011643,2]
[351333457,1738516288269,-4819.38,0.00011643,2]
[351333458,1738516288280,-500.0,0.00011643,2]
[351333459,1738516288290,-1736.82,0.00011643,2]
[351333460,1738516288300,-500.0,0.00011643,2]
[351333461,1738516288310,-700.48,0.00011643,2]
[351333462,1738516288319,-500.0,0.00011643,2]
[351333463,1738516288329,-500.0,0.00011643,2]
[351333464,1738516288339,-1072.57,0.00011643,2]
[351333465,1738516288348,-3729.39,0.00011643,2]
[351333466,1738516288359,-500.0,0.00011643,2]
[351333467,1738516288368,-500.0,0.00011643,2]
[351333468,1738516288377,-687.01,0.00011643,2]
[351333469,1738516288387,-1365.66,0.00011643,2]
[351333470,1738516288398,-806.824741,0.00011643,2]
[351333471,1738516288407,-500.0,0.00011643,2]
[351333472,1738516288417,-2303.89,0.00011643,2]
[351333473,1738516288426,-500.0,0.00011643,2]
[351333474,1738516288437,-1452.31,0.00011643,2]
[351333475,1738516288450,-4008.48,0.00011643,2]
[351333476,1738516288461,-1355.16,0.00011643,2]
[351333477,1738516288472,-500.0,0.00011643,2]
[351333478,1738516288482,-500.0,0.00011643,2]
[351333479,1738516288494,-3631.07,0.00011643,2]
[351333480,1738516288503,-1416.22,0.00011643,2]
[351333481,1738516288512,-500.0,0.00011643,2]
[351333482,1738516288521,-431.478325,0.00011643,2]
[351333483,1738516288531,-547.65,0.00011643,2]
[351333484,1738516288540,-500.0,0.00011643,2]
[351333485,1738516288550,-2391.97,0.00011643,2]
[351333486,1738516288559,-878.43,0.00011643,2]
[351333487,1738516288568,-739.38,0.00011643,2]
[351333488,1738516288577,-658.78,0.00011643,2]
[351333489,1738516288586,-500.0,0.00011643,2]
[351333490,1738516288596,-1291.62,0.00011643,2]
[351333491,1738516288605,-500.0,0.00011643,2]
[351333492,1738516288615,-1768.17,0.00011643,2]
[351333493,1738516288625,-715.219347,0.00011643,2]
[351333494,1738516288635,-500.0,0.00011643,2]
[351333495,1738516288646,-447.85875011,0.00011643,2]
[351333496,1738516288656,-500.0,0.00011643,2]
[351333497,1738516288667,-2540.16,0.00011643,2]
[351333498,1738516288677,-3801.08,0.00011643,2]
[351333499,1738516288687,-474.746717,0.00011643,2]
[351333500,1738516288696,-1197.82,0.00011643,2]
[351333501,1738516288706,-2156.68,0.00011643,2]
[351333502,1738516288715,-710.0,0.00011643,2]
[351333503,1738516288725,-500.0,0.00011643,2]
[351333504,1738516288734,-206.52593643,0.00011643,2]
[351333505,1738516288747,-5321.51,0.00011643,2]
[351333506,1738516288757,-534.38250719,0.00011643,2]
[351333507,1738516288766,-500.0,0.00011643,2]
[351333508,1738516288775,-2286.17,0.00011643,2]
[351333509,1738516288785,-583.29,0.00011643,2]
[351333510,1738516288795,-3334.13,0.00011643,2]
[351333511,1738516288805,-709.12,0.00011643,2]
[351333512,1738516288814,-538.86,0.00011643,2]
[351333513,1738516288824,-788.53,0.00011643,2]
[351333514,1738516288833,-3213.09,0.00011643,2]
[351333515,1738516288843,-500.0,0.00011643,2]
[351333516,1738516288854,-500.0,0.00011643,2]
[351333517,1738516288864,-500.0,0.00011643,2]
[351333518,1738516288875,-500.0,0.00011643,2]
[351333519,1738516288886,-500.0,0.00011643,2]
[351333520,1738516288896,-500.0,0.00011643,2]
[351333521,1738516288906,-500.0,0.00011643,2]
[351333522,1738516288915,-500.0,0.00011643,2]
[351333523,1738516288925,-472.743312,0.00011643,2]
[351333524,1738516288935,-3347.0,0.00011643,2]
[351333525,1738516288950,-500.0,0.00011643,2]
[351333526,1738516288960,-500.0,0.00011643,2]
[351333527,1738516288968,-544.13142844,0.00011643,2]
[351333528,1738516288978,-1791.3,0.00011643,2]
[351333529,1738516288991,-1865.45,0.00011643,2]
[351333530,1738516289000,-4126.51,0.00011643,2]
[351333531,1738516289010,-599.68879,0.00011643,2]
[351333532,1738516289023,-1290.25,0.00011643,2]
[351333533,1738516289033,-500.0,0.00011643,2]
[351333534,1738516289043,-534.57,0.00011643,2]
[351333535,1738516289053,-4106.86,0.00011643,2]
[351333536,1738516289063,-2895.12,0.00011643,2]
[351333537,1738516289073,-1698.65,0.00011643,2]
[351333538,1738516289082,-500.0,0.00011643,2]
[351333539,1738516289092,-500.0,0.00011643,2]
[351333540,1738516289103,-500.0,0.00011643,2]
[351333541,1738516289113,-500.0,0.00011643,2]
[351333542,1738516289122,-448.017146,0.00011643,2]
[351333543,1738516289131,-855.64,0.00011643,2]
[351333544,1738516289141,-500.0,0.00011643,2]
[351333545,1738516289151,-542.91629634,0.00011643,2]
[351333546,1738516289160,-7948.23,0.00011643,2]
[351333547,1738516289170,-3699.44,0.00011643,2]
[351333548,1738516289180,-1134.77,0.00011643,2]
[351333549,1738516289189,-1388.83,0.00011643,2]
[351333550,1738516289199,-1267.53,0.00011643,2]
[351333551,1738516289208,-1281.92,0.00011643,2]
[351333552,1738516289217,-700.239809,0.00011643,2]
[351333553,1738516289226,-1852.27,0.00011643,2]
[351333554,1738516289239,-772.18,0.00011643,2]
[351333555,1738516289248,-500.0,0.00011643,2]
[351333556,1738516289257,-22309.31,0.00011643,2]
[351333557,1738516289267,-10331.27,0.00011643,2]
[351333558,1738516289276,-3740.63,0.00011643,2]
[351333559,1738516289286,-500.0,0.00011643,2]
[351333560,1738516289295,-2548.06,0.00011643,2]
[351333561,1738516289305,-2430.52,0.00011643,2]
[351333562,1738516289314,-757.34,0.00011643,2]
[351333563,1738516289324,-500.0,0.00011643,2]
[351333564,1738516289334,-5491.14,0.00011643,2]
[351333565,1738516289346,-504.28792817,0.00011643,2]
[351333566,1738516289356,-3483.73,0.00011643,2]
[351333567,1738516289367,-500.0,0.00011643,2]
[351333568,1738516289376,-3375.4,0.00011643,2]
[351333569,1738516289386,-1965.31,0.00011643,2]
[351333570,1738516289395,-715.854792,0.00011643,2]
[351333571,1738516289404,-500.0,0.00011643,2]
[351333572,1738516289413,-573.22,0.00011643,2]
[351333573,1738516289422,-499.671825,0.00011643,2]
[351333574,1738516289432,-5575.16,0.00011643,2]
[351333575,1738516289442,-581.98680542,0.00011643,2]
[351333576,1738516289453,-3861.12,0.00011643,2]
[351333577,1738516289463,-500.0,0.00011643,2]
[351333578,1738516289472,-6565.29,0.00011643,2]
[351333579,1738516289481,-2279.37,0.00011643,2]
[351333580,1738516289492,-1098.28,0.00011643,2]
[351333581,1738516289501,-500.0,0.00011643,2]
[351333582,1738516289511,-5388.59,0.00011643,2]
[351333583,1738516289520,-1360.61,0.00011643,2]
[351333584,1738516289530,-500.0,0.00011643,2]
[351333585,1738516289541,-500.0,0.00011643,2]
[351333586,1738516289551,-500.0,0.00011643,2]
[351333587,1738516289561,-658.158992,0.00011643,2]
[351333588,1738516289570,-2722.34,0.00011643,2]
[351333589,1738516289580,-864.3,0.00011643,2]
[351333590,1738516289589,-469.57071,0.00011643,2]
[351333591,1738516289602,-500.0,0.00011643,2]
[351333592,1738516289612,-3044.13,0.00011643,2]
[351333593,1738516289621,-500.0,0.00011643,2]
[351333594,1738516289631,-729.59,0.00011643,2]
[351333595,1738516289640,-500.0,0.00011643,2]
[351333596,1738516289650,-500.0,0.00011643,2]
[351333597,1738516289660,-3192.39,0.00011643,2]
[351333598,1738516289669,-1342.13,0.00011643,2]
[351333599,1738516289680,-3427.67,0.00011643,2]
[351333600,1738516289689,-2027.55,0.00011643,2]
[351333601,1738516289699,-500.0,0.00011643,2]
[351333602,1738516289708,-345.87899019,0.00011643,2]
[351333603,1738516289719,-500.0,0.00011643,2]
[351333604,1738516289729,-4252.01,0.00011643,2]
[351333605,1738516289740,-2583.64,0.00011643,2]
[351333606,1738516289749,-10284.26,0.00011643,2]
[351333607,1738516289759,-2652.56,0.00011643,2]
[351333608,1738516289768,-633.56,0.00011643,2]
[351333609,1738516289778,-1427.7,0.00011643,2]
[351333610,1738516289788,-12127.67,0.00011643,2]
[351333611,1738516289798,-555.992645,0.00011643,2]
[351333612,1738516289808,-576.949377,0.00011643,2]
[351333613,1738516289819,-500.0,0.00011643,2]
[351333614,1738516289829,-500.0,0.00011643,2]
[351333615,1738516289839,-500.0,0.00011643,2]
[351333616,1738516289849,-7300.52,0.00011643,2]
[351333617,1738516289859,-4063.4,0.00011643,2]
[351333618,1738516289869,-6290.38,0.00011643,2]
[351333619,1738516289879,-824.29,0.00011643,2]
[351333620,1738516289890,-1460.02,0.00011643,2]
[351333621,1738516289900,-500.0,0.00011643,2]
[351333622,1738516289909,-500.0,0.00011643,2]
[351333623,1738516289919,-500.0,0.00011643,2]
[351333624,1738516289928,-500.0,0.00011643,2]
[351333625,1738516289938,-2235.5,0.00011643,2]
[351333626,1738516289948,-1908.31,0.00011643,2]
[351333627,1738516289958,-7227.41,0.00011643,2]
[351333628,1738516289968,-6243.33,0.00011643,2]
[351333629,1738516289978,-2827.59,0.00011643,2]
[351333630,1738516289989,-500.0,0.00011643,2]
[351333631,1738516289999,-911.77,0.00011643,2]
[351333632,1738516290012,-1653.28,0.00011643,2]
[351333633,1738516290023,-571.56294,0.00011643,2]
[351333634,1738516290033,-500.0,0.00011643,2]
[351333635,1738516290043,-7297.29,0.00011643,2]
[351333636,1738516290054,-840.74,0.00011643,2]
[351333637,1738516290064,-500.0,0.00011643,2]
[351333638,1738516290074,-500.0,0.00011643,2]
[351333639,1738516290084,-5332.32,0.00011643,2]
[351333640,1738516290096,-903.79,0.00011643,2]
[351333641,1738516290106,-1169.62,0.00011643,2]
[351333642,1738516290115,-3045.71,0.00011643,2]
[351333643,1738516290125,-2256.46,0.00011643,2]
[351333644,1738516290135,-500.0,0.00011643,2]
[351333645,1738516290145,-500.0,0.00011643,2]
[351333646,1738516290155,-1943.86,0.00011643,2]
[351333647,1738516290164,-2045.5,0.00011643,2]
[351333648,1738516290173,-454.142217,0.00011643,2]
[351333649,1738516290183,-1318.91,0.00011643,2]
[351333650,1738516290192,-500.0,0.00011643,2]
[351333651,1738516290202,-500.0,0.00011643,2]
[351333652,1738516290212,-500.0,0.00011643,2]
[351333653,1738516290223,-2414.38,0.00011643,2]
[351333654,1738516290234,-554.542878,0.00011643,2]
[351333655,1738516290246,-719.96,0.00011643,2]
[351333656,1738516290255,-500.0,0.00011643,2]
[351333657,1738516290265,-1536.13,0.00011643,2]
[351333658,1738516290275,-618.23,0.00011643,2]
[351333659,1738516290284,-1518.86,0.00011643,2]
[351333660,1738516290294,-628.12,0.00011643,2]
[351333661,1738516290303,-500.0,0.00011643,2]
[351333662,1738516290313,-11569.23,0.00011643,2]
[351333663,1738516290322,-2634.47,0.00011643,2]
[351333664,1738516290331,-826.16,0.00011643,2]
[351333665,1738516290341,-500.0,0.00011643,2]
[351333666,1738516290351,-3226.39,0.00011643,2]
[351333667,1738516290361,-5191.49,0.00011643,2]
[351333668,1738516290370,-6920.81,0.00011643,2]
[351333669,1738516290380,-3073.21,0.00011643,2]
[351333670,1738516290389,-500.0,0.00011643,2]
[351333671,1738516290399,-7847.47,0.00011643,2]
[351333672,1738516290409,-490.280531,0.00011643,2]
[351333673,1738516290418,-500.0,0.00011643,2]
[351333674,1738516290427,-2251.09,0.00011643,2]
[351333675,1738516290436,-614.64,0.00011643,2]
[351333676,1738516290446,-500.0,0.00011643,2]
[351333677,1738516290455,-1544.32,0.00011643,2]
[351333678,1738516290465,-708.79,0.00011643,2]